[Event "Titled Tuesday Blitz August 15 Early 2023"]
[White "Toncheva, Nadya"]
[Black "Vasques, Antonio Pedro Freixial"]
[WhiteFideId "2924056"]
[BlackFideId "1908332"]
[WhiteElo "2571"]
[BlackElo "2396"]
[Result "1-0"]
[Round "11"]
[TimeControl "180+1"]
[Date "2023.08.15"]
[WhiteClock "0:00:23"]
[BlackClock "0:00:04"]
[Board "56"]

1. e4 {[%clk 0:03:00]}  c5 {[%clk 0:02:59]} 2. Nf3 {[%clk 0:03:00]}  Nc6 {[%clk 0:02:59]} 3. c3 {[%clk 0:03:01]}  Nf6 {[%clk 0:02:58]} 4. e5 {[%clk 0:03:01]}  Nd5 {[%clk 0:02:58]} 5. Bc4 {[%clk 0:03:01]}  Nb6 {[%clk 0:02:58]} 6. Bb3 {[%clk 0:03:02]}  d5 {[%clk 0:02:53]} 7. exd6 {[%clk 0:03:02]}  exd6 {[%clk 0:02:52]} 8. O-O {[%clk 0:03:00]}  Be7 {[%clk 0:02:52]} 9. a4 {[%clk 0:02:56]}  O-O {[%clk 0:02:47]} 10. a5 {[%clk 0:02:55]}  Nd7 {[%clk 0:02:47]} 11. a6 {[%clk 0:02:53]}  Nf6 {[%clk 0:02:41]} 12. d4 {[%clk 0:02:40]}  d5 {[%clk 0:02:18]} 13. Bg5 {[%clk 0:02:16]}  c4 {[%clk 0:02:09]} 14. Bc2 {[%clk 0:02:16]}  b5 {[%clk 0:01:59]} 15. Ne5 {[%clk 0:02:08]}  Nxe5 {[%clk 0:01:18]} 16. dxe5 {[%clk 0:02:08]}  Ng4 {[%clk 0:01:18]} 17. Bxe7 {[%clk 0:02:02]}  Qxe7 {[%clk 0:01:19]} 18. Qxd5 {[%clk 0:01:59]}  Qxe5 {[%clk 0:01:19]} 19. Qxe5 {[%clk 0:01:49]}  Nxe5 {[%clk 0:01:20]} 20. Re1 {[%clk 0:01:49]}  Re8 {[%clk 0:01:06]} 21. Nd2 {[%clk 0:01:47]}  Bd7 {[%clk 0:01:01]} 22. Ne4 {[%clk 0:01:44]}  Bc6 {[%clk 0:00:59]} 23. Nd6 {[%clk 0:01:34]}  Re6 {[%clk 0:00:57]} 24. Nf5 {[%clk 0:01:34]}  Rae8 {[%clk 0:00:16]} 25. Nd4 {[%clk 0:01:34]}  R6e7 {[%clk 0:00:15]} 26. h3 {[%clk 0:01:23]}  Bd7 {[%clk 0:00:15]} 27. Rad1 {[%clk 0:01:19]}  Ng6 {[%clk 0:00:15]} 28. Rxe7 {[%clk 0:01:17]}  Rxe7 {[%clk 0:00:15]} 29. Kf1 {[%clk 0:00:54]}  f6 {[%clk 0:00:15]} 30. Bf5 {[%clk 0:00:45]}  Kf7 {[%clk 0:00:13]} 31. Bxd7 {[%clk 0:00:38]}  Rxd7 {[%clk 0:00:14]} 32. Re1 {[%clk 0:00:38]}  Ne5 {[%clk 0:00:14]} 33. Nxb5 {[%clk 0:00:36]}  Rd2 {[%clk 0:00:11]} 34. Nxa7 {[%clk 0:00:32]}  Nd3 {[%clk 0:00:11]} 35. Ra1 {[%clk 0:00:26]}  Rxf2+ {[%clk 0:00:09]} 36. Kg1 {[%clk 0:00:26]}  Rxb2 {[%clk 0:00:10]} 37. Nc6 {[%clk 0:00:24]}  Nf4 {[%clk 0:00:07]} 38. a7 {[%clk 0:00:23]}  Rxg2+ {[%clk 0:00:04]} 39. Kf1 {[%clk 0:00:23]} 1-0


[Site "https://www.chess.com"]

[Event "Titled Tuesday Blitz August 15 Early 2023"]
[White "Gontcharov, Vladislav"]
[Black "Galchenko, Matvey"]
[WhiteFideId "4123492"]
[BlackFideId "24175480"]
[WhiteElo "2544"]
[BlackElo "2871"]
[Result "0-1"]
[Round "11"]
[TimeControl "180+1"]
[Date "2023.08.15"]
[WhiteClock "0:00:03"]
[BlackClock "0:00:26"]
[Board "58"]

1. d4 {[%clk 0:03:00]}  Nf6 {[%clk 0:02:46]} 2. c4 {[%clk 0:03:00]}  c5 {[%clk 0:02:46]} 3. d5 {[%clk 0:03:00]}  e6 {[%clk 0:02:46]} 4. Nc3 {[%clk 0:02:59]}  exd5 {[%clk 0:02:47]} 5. cxd5 {[%clk 0:03:00]}  d6 {[%clk 0:02:47]} 6. Nf3 {[%clk 0:02:58]}  g6 {[%clk 0:02:48]} 7. Bf4 {[%clk 0:02:55]}  Bg7 {[%clk 0:02:45]} 8. Qa4+ {[%clk 0:02:47]}  Bd7 {[%clk 0:02:45]} 9. Qb3 {[%clk 0:02:47]}  O-O {[%clk 0:02:45]} 10. Bxd6 {[%clk 0:02:42]}  Ba4 {[%clk 0:02:45]} 11. Qxa4 {[%clk 0:02:16]}  Qxd6 {[%clk 0:02:44]} 12. Rd1 {[%clk 0:02:15]}  Nbd7 {[%clk 0:02:41]} 13. Qc2 {[%clk 0:02:03]}  a6 {[%clk 0:02:39]} 14. a4 {[%clk 0:02:01]}  c4 {[%clk 0:02:33]} 15. e3 {[%clk 0:01:57]}  b5 {[%clk 0:02:21]} 16. axb5 {[%clk 0:01:50]}  axb5 {[%clk 0:02:22]} 17. Nxb5 {[%clk 0:01:43]}  Qb4+ {[%clk 0:02:22]} 18. Nc3 {[%clk 0:01:43]}  Ra2 {[%clk 0:02:22]} 19. Rd2 {[%clk 0:01:12]}  Ra1+ {[%clk 0:02:21]} 20. Ke2 {[%clk 0:01:11]}  Nc5 {[%clk 0:02:14]} 21. g3 {[%clk 0:01:08]}  Nd3 {[%clk 0:01:45]} 22. Bg2 {[%clk 0:01:05]}  Rfa8 {[%clk 0:01:37]} 23. Rhd1 {[%clk 0:00:55]}  Ng4 {[%clk 0:01:31]} 24. Rxa1 {[%clk 0:00:40]}  Rxa1 {[%clk 0:01:29]} 25. Rd1 {[%clk 0:00:26]}  Ra8 {[%clk 0:00:49]} 26. Nd4 {[%clk 0:00:26]}  Ndxf2 {[%clk 0:00:42]} 27. Nc6 {[%clk 0:00:25]}  Qc5 {[%clk 0:00:42]} 28. Rd4 {[%clk 0:00:23]}  Bxd4 {[%clk 0:00:41]} 29. exd4 {[%clk 0:00:24]}  Re8+ {[%clk 0:00:41]} 30. Kf1 {[%clk 0:00:23]}  Qd6 {[%clk 0:00:35]} 31. Qd2 {[%clk 0:00:18]}  Nd3 {[%clk 0:00:31]} 32. Bf3 {[%clk 0:00:19]}  Qf6 {[%clk 0:00:27]} 33. Kg2 {[%clk 0:00:19]}  Ne3+ {[%clk 0:00:26]} 34. Qxe3 {[%clk 0:00:04]}  Rxe3 {[%clk 0:00:26]} 35. Ne5 {[%clk 0:00:05]}  Nxe5 {[%clk 0:00:26]} 36. dxe5 {[%clk 0:00:03]}  Qxf3+ {[%clk 0:00:26]} 0-1


[Site "https://www.chess.com"]

[Event "Titled Tuesday Blitz August 15 Early 2023"]
[White "Ansh M Shah"]
[Black "Schmakel, Sam"]
[WhiteFideId "25033379"]
[BlackFideId "2039311"]
[WhiteElo "2536"]
[BlackElo "2743"]
[Result "0-1"]
[Round "11"]
[TimeControl "180+1"]
[Date "2023.08.15"]
[WhiteClock "0:01:56"]
[BlackClock "0:00:19"]
[Board "60"]

1. d4 {[%clk 0:03:00]}  f5 {[%clk 0:02:52]} 2. c4 {[%clk 0:03:01]}  Nf6 {[%clk 0:02:51]} 3. g3 {[%clk 0:03:02]}  g6 {[%clk 0:02:51]} 4. Bg2 {[%clk 0:03:03]}  Bg7 {[%clk 0:02:52]} 5. Nf3 {[%clk 0:03:04]}  O-O {[%clk 0:02:52]} 6. O-O {[%clk 0:03:05]}  d6 {[%clk 0:02:53]} 7. b3 {[%clk 0:03:05]}  e5 {[%clk 0:02:49]} 8. dxe5 {[%clk 0:03:04]}  dxe5 {[%clk 0:02:49]} 9. Bb2 {[%clk 0:03:05]}  e4 {[%clk 0:02:46]} 10. Ng5 {[%clk 0:03:04]}  h6 {[%clk 0:02:34]} 11. Nh3 {[%clk 0:03:04]}  g5 {[%clk 0:02:34]} 12. f4 {[%clk 0:03:03]}  exf3 {[%clk 0:02:18]} 13. exf3 {[%clk 0:03:00]}  Nc6 {[%clk 0:01:57]} 14. f4 {[%clk 0:02:59]}  g4 {[%clk 0:01:58]} 15. Nf2 {[%clk 0:02:59]}  Be6 {[%clk 0:01:58]} 16. Nc3 {[%clk 0:02:57]}  Qe8 {[%clk 0:01:45]} 17. Re1 {[%clk 0:02:53]}  Qf7 {[%clk 0:01:44]} 18. Nd5 {[%clk 0:02:46]}  Rad8 {[%clk 0:01:31]} 19. Nxf6+ {[%clk 0:02:45]}  Bxf6 {[%clk 0:01:31]} 20. Qc2 {[%clk 0:02:45]}  Nb4 {[%clk 0:01:24]} 21. Qe2 {[%clk 0:02:40]}  Rfe8 {[%clk 0:01:09]} 22. Bxf6 {[%clk 0:02:39]}  Qxf6 {[%clk 0:01:10]} 23. Qe5 {[%clk 0:02:34]}  Qf7 {[%clk 0:01:00]} 24. Qc5 {[%clk 0:02:29]}  Nc2 {[%clk 0:00:56]} 25. Bxb7 {[%clk 0:02:22]}  Nxa1 {[%clk 0:00:52]} 26. Rxa1 {[%clk 0:02:23]}  Qe7 {[%clk 0:00:45]} 27. Qxe7 {[%clk 0:02:20]}  Rxe7 {[%clk 0:00:46]} 28. Re1 {[%clk 0:02:19]}  Kf7 {[%clk 0:00:44]} 29. Re5 {[%clk 0:02:13]}  c5 {[%clk 0:00:37]} 30. Rxc5 {[%clk 0:02:11]}  Rxb7 {[%clk 0:00:37]} 31. h3 {[%clk 0:02:09]}  gxh3 {[%clk 0:00:35]} 32. Nxh3 {[%clk 0:02:10]}  Rd2 {[%clk 0:00:34]} 33. Nf2 {[%clk 0:02:10]}  Rxa2 {[%clk 0:00:33]} 34. g4 {[%clk 0:02:10]}  fxg4 {[%clk 0:00:27]} 35. f5 {[%clk 0:02:10]}  Bd7 {[%clk 0:00:28]} 36. Nxg4 {[%clk 0:02:10]}  Rxb3 {[%clk 0:00:28]} 37. Nf2 {[%clk 0:01:59]}  Rb1+ {[%clk 0:00:25]} 38. Kg2 {[%clk 0:02:00]}  Rbb2 {[%clk 0:00:25]} 39. Rc7 {[%clk 0:01:59]}  Rxf2+ {[%clk 0:00:26]} 40. Kg3 {[%clk 0:02:00]}  Rfd2 {[%clk 0:00:24]} 41. c5 {[%clk 0:01:59]}  Rac2 {[%clk 0:00:23]} 42. c6 {[%clk 0:02:00]}  Rxc6 {[%clk 0:00:23]} 43. Rxa7 {[%clk 0:02:00]}  Kf6 {[%clk 0:00:21]} 44. Kh4 {[%clk 0:01:59]}  Rd4+ {[%clk 0:00:20]} 45. Kh5 {[%clk 0:01:57]}  Be8+ {[%clk 0:00:20]} 46. Kxh6 {[%clk 0:01:56]}  Rh4# {[%clk 0:00:19]} 0-1


[Site "https://www.chess.com"]

[Event "Titled Tuesday Blitz August 15 Early 2023"]
[White "Starozhilov, Leonid"]
[Black "Camilla_Lee"]
[WhiteFideId "14106752"]
[WhiteElo "2678"]
[BlackElo "2517"]
[Result "1-0"]
[Round "11"]
[TimeControl "180+1"]
[Date "2023.08.15"]
[WhiteClock "0:00:09"]
[BlackClock "0:00:07"]
[Board "62"]

1. e4 {[%clk 0:03:00]}  e5 {[%clk 0:02:59]} 2. Nf3 {[%clk 0:02:59]}  Nc6 {[%clk 0:03:00]} 3. Bb5 {[%clk 0:02:59]}  f5 {[%clk 0:03:00]} 4. d3 {[%clk 0:02:57]}  fxe4 {[%clk 0:03:00]} 5. dxe4 {[%clk 0:02:57]}  Nf6 {[%clk 0:03:01]} 6. Qd3 {[%clk 0:02:57]}  Bc5 {[%clk 0:02:59]} 7. Bxc6 {[%clk 0:02:52]}  bxc6 {[%clk 0:02:57]} 8. O-O {[%clk 0:02:33]}  Qe7 {[%clk 0:02:56]} 9. a4 {[%clk 0:02:21]}  a5 {[%clk 0:02:55]} 10. Bg5 {[%clk 0:02:14]}  Ba6 {[%clk 0:02:49]} 11. c4 {[%clk 0:02:08]}  d6 {[%clk 0:02:48]} 12. Nbd2 {[%clk 0:02:03]}  Rb8 {[%clk 0:02:41]} 13. b3 {[%clk 0:02:03]}  O-O {[%clk 0:02:39]} 14. h3 {[%clk 0:02:00]}  h6 {[%clk 0:02:38]} 15. Be3 {[%clk 0:02:01]}  Bb4 {[%clk 0:02:30]} 16. Nh4 {[%clk 0:01:49]}  Qe6 {[%clk 0:02:24]} 17. Nf5 {[%clk 0:01:45]}  Kh7 {[%clk 0:02:06]} 18. f3 {[%clk 0:01:43]}  Nd7 {[%clk 0:01:54]} 19. Qc2 {[%clk 0:01:28]}  d5 {[%clk 0:01:43]} 20. Kh1 {[%clk 0:01:16]}  d4 {[%clk 0:01:30]} 21. Bf2 {[%clk 0:01:16]}  Bxd2 {[%clk 0:00:59]} 22. Qxd2 {[%clk 0:01:17]}  Rxb3 {[%clk 0:00:59]} 23. Qxa5 {[%clk 0:01:16]}  Bxc4 {[%clk 0:00:58]} 24. Rfc1 {[%clk 0:01:15]}  Nb6 {[%clk 0:00:57]} 25. Qc5 {[%clk 0:01:10]}  Ra8 {[%clk 0:00:52]} 26. a5 {[%clk 0:00:45]}  Rb5 {[%clk 0:00:52]} 27. axb6 {[%clk 0:00:28]}  Rxc5 {[%clk 0:00:48]} 28. Rxa8 {[%clk 0:00:27]}  cxb6 {[%clk 0:00:39]} 29. Ra7 {[%clk 0:00:28]}  Ra5 {[%clk 0:00:34]} 30. Rxg7+ {[%clk 0:00:26]}  Kh8 {[%clk 0:00:34]} 31. Re7 {[%clk 0:00:24]}  Qg8 {[%clk 0:00:30]} 32. Nxh6 {[%clk 0:00:23]}  Qg6 {[%clk 0:00:27]} 33. Nf5 {[%clk 0:00:18]}  b5 {[%clk 0:00:21]} 34. Bg3 {[%clk 0:00:18]}  Kg8 {[%clk 0:00:16]} 35. Bxe5 {[%clk 0:00:16]}  Kf8 {[%clk 0:00:16]} 36. Bg7+ {[%clk 0:00:11]}  Kg8 {[%clk 0:00:15]} 37. Bh6 {[%clk 0:00:11]}  Bf7 {[%clk 0:00:10]} 38. Rc7 {[%clk 0:00:11]}  Ra6 {[%clk 0:00:08]} 39. Ne7+ {[%clk 0:00:10]}  Kh7 {[%clk 0:00:07]} 40. Nxg6 {[%clk 0:00:11]}  Kxg6 {[%clk 0:00:08]} 41. R7xc6+ {[%clk 0:00:09]}  Rxc6 {[%clk 0:00:08]} 42. Rxc6+ {[%clk 0:00:10]}  Kh5 {[%clk 0:00:09]} 43. Bd2 {[%clk 0:00:09]}  Bc4 {[%clk 0:00:08]} 44. g4+ {[%clk 0:00:08]}  Kh4 {[%clk 0:00:07]} 45. Kh2 {[%clk 0:00:09]} 1-0


[Site "https://www.chess.com"]

[Event "Titled Tuesday Blitz August 15 Early 2023"]
[White "Berezin, Viktor"]
[Black "Belov, Alexei"]
[WhiteFideId "14107872"]
[BlackFideId "4128206"]
[WhiteElo "2507"]
[BlackElo "2619"]
[Result "1-0"]
[Round "11"]
[TimeControl "180+1"]
[Date "2023.08.15"]
[WhiteClock "0:00:27"]
[BlackClock "0:00:36"]
[Board "64"]

1. d4 {[%clk 0:02:55]}  d5 {[%clk 0:02:59]} 2. c4 {[%clk 0:02:55]}  e6 {[%clk 0:02:59]} 3. Nf3 {[%clk 0:02:55]}  Nf6 {[%clk 0:02:59]} 4. g3 {[%clk 0:02:56]}  Be7 {[%clk 0:03:00]} 5. Bg2 {[%clk 0:02:56]}  O-O {[%clk 0:03:00]} 6. O-O {[%clk 0:02:57]}  dxc4 {[%clk 0:03:00]} 7. Qc2 {[%clk 0:02:54]}  a6 {[%clk 0:03:00]} 8. a4 {[%clk 0:02:53]}  Bd7 {[%clk 0:03:01]} 9. Qxc4 {[%clk 0:02:49]}  Bc6 {[%clk 0:03:01]} 10. Bf4 {[%clk 0:02:49]}  Nbd7 {[%clk 0:03:00]} 11. Nc3 {[%clk 0:02:47]}  Nb6 {[%clk 0:03:00]} 12. Qd3 {[%clk 0:02:43]}  Nbd5 {[%clk 0:03:00]} 13. Rfd1 {[%clk 0:02:29]}  Nxf4 {[%clk 0:02:45]} 14. gxf4 {[%clk 0:02:28]}  Bb4 {[%clk 0:02:38]} 15. Ne5 {[%clk 0:01:59]}  Bxg2 {[%clk 0:02:36]} 16. Kxg2 {[%clk 0:01:58]}  a5 {[%clk 0:02:29]} 17. Rac1 {[%clk 0:01:53]}  c6 {[%clk 0:02:25]} 18. Qg3 {[%clk 0:01:48]}  g6 {[%clk 0:02:02]} 19. Rd3 {[%clk 0:01:34]}  Nh5 {[%clk 0:01:48]} 20. Qg4 {[%clk 0:01:30]}  Qe7 {[%clk 0:01:26]} 21. Rh3 {[%clk 0:01:14]}  Kh8 {[%clk 0:01:26]} 22. Rg1 {[%clk 0:01:04]}  c5 {[%clk 0:01:16]} 23. Kf1 {[%clk 0:00:44]}  Rg8 {[%clk 0:01:09]} 24. Ne4 {[%clk 0:00:42]}  cxd4 {[%clk 0:00:54]} 25. Ng5 {[%clk 0:00:40]}  Rg7 {[%clk 0:00:54]} 26. Ngxf7+ {[%clk 0:00:30]}  Rxf7 {[%clk 0:00:53]} 27. Nxg6+ {[%clk 0:00:31]}  hxg6 {[%clk 0:00:52]} 28. Qxg6 {[%clk 0:00:32]}  Rc8 {[%clk 0:00:40]} 29. Rxh5+ {[%clk 0:00:29]}  Rh7 {[%clk 0:00:40]} 30. Rxh7+ {[%clk 0:00:27]}  Qxh7 {[%clk 0:00:36]} 31. Qf6+ {[%clk 0:00:27]} 1-0


[Site "https://www.chess.com"]

[Event "Titled Tuesday Blitz August 15 Early 2023"]
[White "Altman, Joshua"]
[Black "slidingknight2775"]
[WhiteFideId "426210"]
[WhiteElo "2576"]
[BlackElo "2464"]
[Result "0-1"]
[Round "11"]
[TimeControl "180+1"]
[Date "2023.08.15"]
[WhiteClock "0:00:04"]
[BlackClock "0:00:14"]
[Board "67"]

1. Nf3 {[%clk 0:03:00]}  d5 {[%clk 0:02:59]} 2. d4 {[%clk 0:03:00]}  Nf6 {[%clk 0:02:59]} 3. c4 {[%clk 0:03:00]}  e6 {[%clk 0:02:59]} 4. Nc3 {[%clk 0:03:00]}  a6 {[%clk 0:02:56]} 5. cxd5 {[%clk 0:03:00]}  exd5 {[%clk 0:02:57]} 6. Bg5 {[%clk 0:02:59]}  c6 {[%clk 0:02:57]} 7. Qc2 {[%clk 0:02:58]}  Be7 {[%clk 0:02:52]} 8. e3 {[%clk 0:02:58]}  h6 {[%clk 0:02:51]} 9. Bh4 {[%clk 0:02:58]}  O-O {[%clk 0:02:50]} 10. Bd3 {[%clk 0:02:58]}  Re8 {[%clk 0:02:50]} 11. O-O {[%clk 0:02:56]}  Ne4 {[%clk 0:02:40]} 12. Bxe7 {[%clk 0:02:54]}  Qxe7 {[%clk 0:02:41]} 13. Rae1 {[%clk 0:02:54]}  Nd7 {[%clk 0:02:32]} 14. Nd2 {[%clk 0:02:47]}  Ndf6 {[%clk 0:02:20]} 15. f3 {[%clk 0:02:46]}  Nxd2 {[%clk 0:02:20]} 16. Qxd2 {[%clk 0:02:47]}  Qd6 {[%clk 0:02:17]} 17. Qf2 {[%clk 0:02:34]}  c5 {[%clk 0:02:08]} 18. Ne2 {[%clk 0:01:37]}  Bd7 {[%clk 0:01:52]} 19. dxc5 {[%clk 0:01:25]}  Qxc5 {[%clk 0:01:53]} 20. Nd4 {[%clk 0:01:25]}  Rac8 {[%clk 0:01:51]} 21. Re2 {[%clk 0:01:16]}  Re7 {[%clk 0:01:34]} 22. Rc2 {[%clk 0:01:10]}  Qd6 {[%clk 0:01:29]} 23. Rfc1 {[%clk 0:01:05]}  Rxc2 {[%clk 0:01:27]} 24. Rxc2 {[%clk 0:01:04]}  Qe5 {[%clk 0:01:25]} 25. Re2 {[%clk 0:01:04]}  g6 {[%clk 0:01:20]} 26. h3 {[%clk 0:00:46]}  h5 {[%clk 0:01:10]} 27. f4 {[%clk 0:00:44]}  Qd6 {[%clk 0:01:06]} 28. f5 {[%clk 0:00:36]}  g5 {[%clk 0:01:04]} 29. Nf3 {[%clk 0:00:19]}  Nh7 {[%clk 0:00:46]} 30. h4 {[%clk 0:00:12]}  g4 {[%clk 0:00:44]} 31. Nd4 {[%clk 0:00:11]}  Nf6 {[%clk 0:00:42]} 32. g3 {[%clk 0:00:09]}  Qe5 {[%clk 0:00:40]} 33. Kg2 {[%clk 0:00:06]}  Kg7 {[%clk 0:00:34]} 34. b4 {[%clk 0:00:06]}  Ne4 {[%clk 0:00:33]} 35. Bxe4 {[%clk 0:00:06]}  Qxe4+ {[%clk 0:00:34]} 36. Kh2 {[%clk 0:00:06]}  Qe5 {[%clk 0:00:31]} 37. a4 {[%clk 0:00:05]}  Bxa4 {[%clk 0:00:29]} 38. Re1 {[%clk 0:00:04]}  f6 {[%clk 0:00:27]} 39. Re2 {[%clk 0:00:02]}  Bd7 {[%clk 0:00:27]} 40. Re1 {[%clk 0:00:02]}  b6 {[%clk 0:00:27]} 41. Re2 {[%clk 0:00:03]}  a5 {[%clk 0:00:27]} 42. bxa5 {[%clk 0:00:03]}  bxa5 {[%clk 0:00:28]} 43. Re1 {[%clk 0:00:03]}  a4 {[%clk 0:00:28]} 44. Re2 {[%clk 0:00:04]}  a3 {[%clk 0:00:29]} 45. Re1 {[%clk 0:00:04]}  Qd6 {[%clk 0:00:25]} 46. Ra1 {[%clk 0:00:03]}  Re4 {[%clk 0:00:23]} 47. Qd2 {[%clk 0:00:03]}  Qe7 {[%clk 0:00:20]} 48. Re1 {[%clk 0:00:02]}  Re5 {[%clk 0:00:16]} 49. Re2 {[%clk 0:00:02]}  Bxf5 {[%clk 0:00:17]} 50. Nxf5+ {[%clk 0:00:03]}  Rxf5 {[%clk 0:00:17]} 51. Qd3 {[%clk 0:00:03]}  Qe4 {[%clk 0:00:16]} 52. Qxa3 {[%clk 0:00:01]}  Rf3 {[%clk 0:00:17]} 53. Qa7+ {[%clk 0:00:01]}  Kg6 {[%clk 0:00:17]} 54. Qd7 {[%clk 0:00:01]}  Rxe3 {[%clk 0:00:12]} 55. Rxe3 {[%clk 0:00:02]}  Qxe3 {[%clk 0:00:12]} 56. Qxd5 {[%clk 0:00:02]}  Qf2+ {[%clk 0:00:12]} 57. Kh1 {[%clk 0:00:03]}  Qf3+ {[%clk 0:00:12]} 58. Qxf3 {[%clk 0:00:03]}  gxf3 {[%clk 0:00:13]} 59. Kg1 {[%clk 0:00:04]}  Kf5 {[%clk 0:00:13]} 60. Kf2 {[%clk 0:00:04]}  Kg4 {[%clk 0:00:14]} 0-1


[Site "https://www.chess.com"]

[Event "Titled Tuesday Blitz August 15 Early 2023"]
[White "Lach, Aleksandra"]
[Black "Shapiro, Viktor"]
[WhiteFideId "1134299"]
[BlackFideId "4175700"]
[WhiteElo "2432"]
[BlackElo "2560"]
[Result "0-1"]
[Round "11"]
[TimeControl "180+1"]
[Date "2023.08.15"]
[WhiteClock "0:00:00"]
[BlackClock "0:00:08"]
[Board "68"]

1. Nf3 {[%clk 0:03:00]}  Nf6 {[%clk 0:02:55]} 2. g3 {[%clk 0:02:58]}  d5 {[%clk 0:02:55]} 3. Bg2 {[%clk 0:02:57]}  c5 {[%clk 0:02:55]} 4. O-O {[%clk 0:02:57]}  Nc6 {[%clk 0:02:55]} 5. d4 {[%clk 0:02:53]}  Bg4 {[%clk 0:02:53]} 6. dxc5 {[%clk 0:02:49]}  e6 {[%clk 0:02:53]} 7. Be3 {[%clk 0:02:45]}  Ne4 {[%clk 0:02:50]} 8. c3 {[%clk 0:02:19]}  Nxc5 {[%clk 0:02:43]} 9. b4 {[%clk 0:02:12]}  Ne4 {[%clk 0:02:42]} 10. b5 {[%clk 0:02:13]}  Nb8 {[%clk 0:02:37]} 11. Ne5 {[%clk 0:02:05]}  Bf5 {[%clk 0:02:34]} 12. Qa4 {[%clk 0:01:50]}  Nd7 {[%clk 0:02:32]} 13. Nd3 {[%clk 0:01:13]}  Be7 {[%clk 0:02:26]} 14. f3 {[%clk 0:01:09]}  Nd6 {[%clk 0:02:24]} 15. g4 {[%clk 0:01:05]}  Bg6 {[%clk 0:02:18]} 16. f4 {[%clk 0:01:05]}  O-O {[%clk 0:02:16]} 17. Nd2 {[%clk 0:00:53]}  Nb6 {[%clk 0:02:14]} 18. Qd1 {[%clk 0:00:29]}  Nxb5 {[%clk 0:02:10]} 19. Rc1 {[%clk 0:00:26]}  Rc8 {[%clk 0:02:08]} 20. Qb3 {[%clk 0:00:23]}  a6 {[%clk 0:01:59]} 21. Ne5 {[%clk 0:00:24]}  Nd7 {[%clk 0:01:43]} 22. Nxg6 {[%clk 0:00:17]}  hxg6 {[%clk 0:01:43]} 23. a4 {[%clk 0:00:17]}  Nc5 {[%clk 0:01:43]} 24. Bxc5 {[%clk 0:00:16]}  Bxc5+ {[%clk 0:01:42]} 25. Kh1 {[%clk 0:00:17]}  Nd6 {[%clk 0:01:43]} 26. Nf3 {[%clk 0:00:17]}  b5 {[%clk 0:01:43]} 27. Ne5 {[%clk 0:00:17]}  Be3 {[%clk 0:01:39]} 28. Rcd1 {[%clk 0:00:16]}  g5 {[%clk 0:01:33]} 29. f5 {[%clk 0:00:14]}  Bf4 {[%clk 0:01:28]} 30. Nd3 {[%clk 0:00:14]}  Be3 {[%clk 0:01:22]} 31. fxe6 {[%clk 0:00:09]}  fxe6 {[%clk 0:01:22]} 32. axb5 {[%clk 0:00:10]}  axb5 {[%clk 0:01:21]} 33. Rxf8+ {[%clk 0:00:09]}  Qxf8 {[%clk 0:01:20]} 34. Rf1 {[%clk 0:00:10]}  Qe8 {[%clk 0:01:15]} 35. Ne5 {[%clk 0:00:08]}  Nc4 {[%clk 0:01:14]} 36. Nf3 {[%clk 0:00:07]}  Qe7 {[%clk 0:01:09]} 37. Qc2 {[%clk 0:00:06]}  Rf8 {[%clk 0:01:04]} 38. Qd3 {[%clk 0:00:07]}  Rf4 {[%clk 0:01:01]} 39. Ra1 {[%clk 0:00:06]}  Rf8 {[%clk 0:00:54]} 40. Nd4 {[%clk 0:00:04]}  Qf6 {[%clk 0:00:48]} 41. Nxe6 {[%clk 0:00:03]}  Re8 {[%clk 0:00:32]} 42. Nc7 {[%clk 0:00:03]}  Rd8 {[%clk 0:00:30]} 43. Nxd5 {[%clk 0:00:03]}  Qe5 {[%clk 0:00:30]} 44. Qe4 {[%clk 0:00:03]}  Qxe4 {[%clk 0:00:28]} 45. Bxe4 {[%clk 0:00:04]}  Bf4 {[%clk 0:00:27]} 46. Ra7 {[%clk 0:00:04]}  Nd6 {[%clk 0:00:26]} 47. Ne7+ {[%clk 0:00:05]}  Kh8 {[%clk 0:00:25]} 48. Bd5 {[%clk 0:00:04]}  Nc4 {[%clk 0:00:22]} 49. Kg2 {[%clk 0:00:04]}  Ne3+ {[%clk 0:00:22]} 50. Kf3 {[%clk 0:00:05]}  Nxd5 {[%clk 0:00:23]} 51. Nf5 {[%clk 0:00:05]}  Nxc3 {[%clk 0:00:22]} 52. Nxg7 {[%clk 0:00:05]}  Nd5 {[%clk 0:00:19]} 53. Ne6 {[%clk 0:00:05]}  Re8 {[%clk 0:00:19]} 54. Nd4 {[%clk 0:00:04]}  Re3+ {[%clk 0:00:19]} 55. Kf2 {[%clk 0:00:05]}  Be5 {[%clk 0:00:19]} 56. Ra8+ {[%clk 0:00:05]}  Kg7 {[%clk 0:00:19]} 57. Nf3 {[%clk 0:00:05]}  Bf4 {[%clk 0:00:19]} 58. Ra7+ {[%clk 0:00:05]}  Re7 {[%clk 0:00:19]} 59. Ra5 {[%clk 0:00:05]}  Be3+ {[%clk 0:00:18]} 60. Kg3 {[%clk 0:00:05]}  Nc3 {[%clk 0:00:19]} 61. h4 {[%clk 0:00:05]}  Ne4+ {[%clk 0:00:19]} 62. Kh3 {[%clk 0:00:05]}  Rb7 {[%clk 0:00:19]} 63. hxg5 {[%clk 0:00:05]}  Bxg5 {[%clk 0:00:19]} 64. Kg2 {[%clk 0:00:03]}  Bd8 {[%clk 0:00:19]} 65. Ra6 {[%clk 0:00:03]}  Bf6 {[%clk 0:00:19]} 66. g5 {[%clk 0:00:03]}  Nxg5 {[%clk 0:00:19]} 67. Nh4 {[%clk 0:00:03]}  Nf7 {[%clk 0:00:17]} 68. Nf5+ {[%clk 0:00:03]}  Kg6 {[%clk 0:00:17]} 69. Ng3 {[%clk 0:00:04]}  Ng5 {[%clk 0:00:16]} 70. e4 {[%clk 0:00:03]}  Re7 {[%clk 0:00:14]} 71. Kf2 {[%clk 0:00:03]}  Nxe4+ {[%clk 0:00:14]} 72. Kf3 {[%clk 0:00:03]}  Nxg3 {[%clk 0:00:13]} 73. Kxg3 {[%clk 0:00:04]}  Re3+ {[%clk 0:00:14]} 74. Kf4 {[%clk 0:00:04]}  Rb3 {[%clk 0:00:15]} 75. Rb6 {[%clk 0:00:04]}  Rb4+ {[%clk 0:00:15]} 76. Ke3 {[%clk 0:00:04]}  Rb1 {[%clk 0:00:15]} 77. Kd3 {[%clk 0:00:05]}  b4 {[%clk 0:00:16]} 78. Kc4 {[%clk 0:00:05]}  Rc1+ {[%clk 0:00:10]} 79. Kxb4 {[%clk 0:00:04]}  Kf5 {[%clk 0:00:10]} 80. Rb5+ {[%clk 0:00:04]}  Be5 {[%clk 0:00:10]} 81. Ka5 {[%clk 0:00:04]}  Ke4 {[%clk 0:00:10]} 82. Rb7 {[%clk 0:00:04]}  Kd5 {[%clk 0:00:09]} 83. Rd7+ {[%clk 0:00:04]}  Bd6 {[%clk 0:00:09]} 84. Rh7 {[%clk 0:00:04]}  Kc6 {[%clk 0:00:09]} 85. Ka4 {[%clk 0:00:00]}  Rc3 {[%clk 0:00:08]} 0-1


[Site "https://www.chess.com"]